{"text_format":"1","workbook":"xlsx","n_sheets":6,"sheets":["Isplate po bankama","Spisak","Korisnici","Zahtjev","Načelnik","Za JIS"],"not_rendered":{"charts":0,"images":1,"macros":1,"external_links":1,"defined_names":10,"comments":0,"pivot_tables":0},"unopened":[],"bounds":{"document_bytes":16777216,"sheet_cells":100000,"rows_first":2000,"rows_last":500,"rows_between":2000,"halvings":0,"cell_chars":16384,"cell_head_chars":4096},"cells_cut":0,"cells_raw":0,"read":"whole","date_system":"1900"}

{"sheet":"Isplate po bankama","index":0,"n_rows":41,"n_cols":15,"rows_kept":41,"cut":false,"hidden":false,"merged":[[16,0,18,0],[19,0,21,0],[37,0,39,0],[25,0,27,0],[28,0,30,0],[31,0,33,0],[34,0,36,0],[22,0,24,0],[0,0,0,12],[4,0,6,0],[7,0,9,0],[10,0,12,0],[13,0,15,0]]}
[]
[]
[]
["Mjesec","Svrha","Unikredit","Razvojna","Hipo","Nova","Raifeissen","Pavlović","Bobar","Volksbank","ZG","MF","UKUPNO"]
["Januar","Pomoći",12525,3125,2530,2930,2110,1085,1530,400,null,50,{"$f":"SUM($C5:$L5)","v":26285}]
[null,"Pomoći 1",null,null,null,null,null,null,null,null,null,null,0]
[null,"Prevoz",115,140,null,60,50,null,null,null,null,null,365]
["Februar","Pomoći",1975,1970,530,350,250,800,1005,null,null,null,6880]
[null,"Pomoći 1",null,null,null,null,null,null,null,null,null,null,0]
[null,"Prevoz",115,140,null,30,50,null,null,null,null,null,335]
["Mart","Pomoći",3815,500,1650,1290,1280,250,700,650,300,null,10435]
[null,"Pomoći 1",null,null,null,null,null,null,null,null,null,null,0]
[null,"Prevoz",115,140,null,30,50,null,null,null,null,null,335]
["April","Pomoći",null,null,null,null,null,null,null,null,null,null,{"$f":"SUM($C14:$L14)","v":0}]
[null,"Pomoći 1",null,null,null,null,null,null,null,null,null,null,0]
[null,"Prevoz",null,null,null,null,null,null,null,null,null,null,0]
["Maj","Pomoći",null,null,null,null,null,null,null,null,null,null,0]
[null,"Pomoći 1",null,null,null,null,null,null,null,null,null,null,0]
[null,"Prevoz",null,null,null,null,null,null,null,null,null,null,0]
["Juni","Pomoći",null,null,null,null,null,null,null,null,null,null,0]
[null,"Pomoći 1",null,null,null,null,null,null,null,null,null,null,0]
[null,"Prevoz",null,null,null,null,null,null,null,null,null,null,0]
["Juli","Pomoći",null,null,null,null,null,null,null,null,null,null,0]
[null,"Pomoći 1",null,null,null,null,null,null,null,null,null,null,0]
[null,"Prevoz",null,null,null,null,null,null,null,null,null,null,0]
["Avgust","Pomoći",null,null,null,null,null,null,null,null,null,null,0]
[null,"Pomoći 1",null,null,null,null,null,null,null,null,null,null,0]
[null,"Prevoz",null,null,null,null,null,null,null,null,null,null,0,null," "]
["Septembar","Pomoći",null,null,null,null,null,null,null,null,null,null,0]
[null,"Pomoći 1",null,null,null,null,null,null,null,null,null,null,0]
[null,"Prevoz",null,null,null,null,null,null,null,null,null,null,0]
["Oktobar","Pomoći",null,null,null,null,null,null,null,null,null,null,0]
[null,"Pomoći 1",null,null,null,null,null,null,null,null,null,null,0]
[null,"Prevoz",null,null,null,null,null,null,null,null,null,null,0]
["Novembar","Pomoći",null,null,null,null,null,null,null,null,null,null,0]
[null,"Pomoći 1",null,null,null,null,null,null,null,null,null,null,0,null," "]
[null,"Prevoz",null,null,null,null,null,null,null,null,null,null,0]
["Decembar","Pomoći",null,null,null,null,null,null,null,null,null,null,0]
[null,"Pomoći 1",null,null,null,null,null,null,null,null,null,null,0]
[null,"Prevoz",null,null,null,null,null,null,null,null,null,null,0]
["UKUPNO",null,null,null,null,null,null,null,null,null,null,null,{"$f":"SUM(M5:M40)","v":44635}]

{"sheet":"Spisak","index":1,"n_rows":0,"n_cols":0,"rows_kept":0,"cut":false,"hidden":false,"merged":[[1,8,1,14],[0,2,1,3]]}

{"sheet":"Korisnici","index":2,"n_rows":0,"n_cols":0,"rows_kept":0,"cut":false,"hidden":false,"merged":[[0,2,0,3],[0,7,0,8],[2,11,2,12]]}

{"sheet":"Zahtjev","index":3,"n_rows":0,"n_cols":0,"rows_kept":0,"cut":false,"hidden":false,"merged":[[3,0,3,10],[0,5,2,5],[0,9,0,10],[4,9,4,10]]}

{"sheet":"Načelnik","index":4,"n_rows":18,"n_cols":17,"rows_kept":18,"cut":false,"hidden":false,"merged":[[1,5,3,5]]}
[null,null,null,null,null,null,null,null,null,null,null,null,null,6,2,3]
[null,null,null,null,null,null,null,null,null,"Spajanje"]
[]
[]
[]
["Broj","Prezime, ime oca i ime","Kategorija","Datum","Iznos","JMBG","Tekući račun","Vlasnik računa","Isplata","Svrha","Datum","Naziv Banke"]
["014-11/14","Kuprešak Milana Milomir","RVI","2014-01-17T08:45:48.700",3000,"2404957124128","5521153236397197","Kuprešak Milomir","Spojen","kuća",null,"Hipo Alpe Adria",null,"Januar ","Bobar banka",null,"Liječenje"]
["014-32/14","Petrović Mirka Miloš","DB","2014-01-22T08:22:20.160",3000,"0409954123591","45014470000","Petrović Miloš","x","kuća",null,"Unikredit BL"]
["014-93/14","Pavličević Tomislava Bratislav","RVI","2014-02-05T08:11:47.380",300,"0508972123599","09550400430","Grečić Radmila","Spojen","sahrana",null,"Raifeisen Bank",null,"Februar","Hipo Alpe Adria",null,"Sahrane"]
["014-130/14","Đukić Simeuna Marija","PPB","2014-02-14T08:14:23.970",300,"0505968128625","5544020008711111","Đukić Marija","Februar","ostalo",null,"Pavlović Banka",null,"Mart","Nova Banka",null,"Kuće"]
[null,"Zarić Bogoljuba Stana","DB","2014-02-17T11:38:58.200",200,"0302962128595","1533541406","Zarić Stana","Spojen","liječenje",null,"Hipo Alpe Adria",null,"April","Pavlović Banka",null,"Ostalo"]
["014-261/14",{"$f":"'[1]Zahtjev '!$J$12","v":"Suvajac Branka Živko"},{"$f":"'[1]Zahtjev '!$J$16","v":"DB"},"2014-02-28T07:47:02.490",300,{"$f":"'[1]Zahtjev '!$J$17","v":"1504960123605"},{"$f":"'[1]Zahtjev '!$J$18","v":"45417349000"},{"$f":"'[1]Zahtjev '!$J$19","v":"Suvajac Živko"},"Juni","sahrana",28.02,{"$f":"'[1]Zahtjev '!$Q$18","v":"Unikredit BL"},null,"Maj","Raifeisen Banka",null,"Prevoz"]
["014-324/14","Marjanović Jove Milan","PPB","2014-03-04T08:44:52.360",160,"0602949123588","5620998029209929","Marjanović Milan","Spojen","ostalo",null,"Razvojna Banka",null,"Juni","Razvojna Banka",null,"Udžbenici"]
["014-318/14","Petković Đurađa Goran","DB","2014-03-04T08:49:11.670",300,"2912970123594","5544020009471106","Petković Goran","x","ostalo",null,"Pavlović Banka",null,"Juli","Unikredit BL",null,"Ekskurzije"]
["014-223/14","Stevanović Bogdana Zoran","DB","2014-03-11T12:51:08.310",105,"2201959123589","1533802121","Stevanović Zoran","Spojen","ostalo",11.03,"Hipo Alpe Adria",null,"Avgust","Volks Banka"]
[null,null,null,null,null,null,null,null,null,null,null,null,null,"Novembar"]
[null,null,null,null,null,null,null,null,null,null,null,null,null,"Decembar"]
[null,null,null,null,null,null,null,null,null,null,null,null,null,"Neriješeni"]

{"sheet":"Za JIS","index":5,"n_rows":1,"n_cols":7,"rows_kept":1,"cut":false,"hidden":false,"merged":[]}
["R.b.","Prezime, ime oca i ime","Kategorija","Datum","Iznos","JMBG","Rješenje"]